bitfinex-derivatives/quotes_BTCF0:USTF0_20241117
["timestamp","ask_amount","ask_price","bid_price","bid_amount"]
[1731819316187,0.421111,90539.0,90515.0,0.04326276]
[1731819316486,0.3659,90539.0,90521.0,0.055221]
[1731819316685,0.3659,90539.0,90514.0,0.0374]
[1731819316686,0.3659,90539.0,90535.0,0.055213]
[1731819316879,0.3608,90539.0,90536.0,0.055212]
[1731819317791,0.3608,90539.0,90538.0,0.055211]
[1731819318778,0.69216,90539.0,90526.0,0.0051]
[1731819318980,0.3608,90528.0,90526.0,0.055218]
[1731819319181,0.36152,90539.0,90533.0,0.055214]
[1731819319389,0.3608,90539.0,90533.0,0.055214]
[1731819319990,0.3608,90539.0,90524.0,0.0051]
[1731819319991,0.3608,90539.0,90537.0,0.055211]
[1731819320386,0.3608,90539.0,90528.0,0.055217]
[1731819320584,0.15028311,90538.0,90528.0,0.055217]
[1731819320788,0.15028311,90538.0,90529.0,0.00590091]
[1731819320993,0.15028311,90538.0,90530.0,0.01180244]
[1731819321182,0.15028311,90538.0,90531.0,0.00590153]
[1731819321384,0.055212,90537.0,90532.0,0.00590153]
[1731819321586,0.18753221,90537.0,90533.0,0.00590153]
[1731819321784,0.18753221,90537.0,90524.0,0.055219]
[1731819321785,0.055212,90537.0,90534.0,0.00590153]
[1731819322012,0.055212,90537.0,90519.0,0.0051]
[1731819322013,0.13232021,90536.0,90535.0,0.00590153]
[1731819322325,0.13232021,90536.0,90535.0,0.00590586]
[1731819322597,0.28260332,90538.0,90535.0,0.00590575]
[1731819322802,0.3608,90536.0,90524.0,0.0051]
[1731819322988,0.3608,90536.0,90519.0,0.0051]
[1731819322989,0.3608,90525.0,90519.0,0.0051]
[1731819323297,0.0933,90524.0,90512.0,0.055227]
[1731819323493,0.0933,90524.0,90513.0,0.0059203]
[1731819323691,0.0933,90524.0,90514.0,0.0059203]
[1731819323881,0.3608,90516.0,90515.0,0.0059203]
[1731819324402,0.69224,90516.0,90515.0,0.0059203]
[1731819324592,0.747465,90516.0,90505.0,0.0051]
[1731819324792,0.3608,90507.0,90506.0,0.00587721]
[1731819325000,0.3608,90507.0,90501.0,0.055233]
[1731819325182,0.0309,90506.0,90502.0,0.00579302]
[1731819325386,0.0309,90506.0,90503.0,0.00579302]
[1731819325587,0.0634,90506.0,90504.0,0.00579302]
[1731819325787,0.0634,90506.0,90505.0,0.00579474]
[1731819326097,0.055233,90502.0,90493.0,0.0051]
[1731819326299,0.055233,90502.0,90494.0,0.00571604]
[1731819326497,0.055233,90502.0,90489.0,0.00012326]
[1731819326498,0.3608,90495.0,90489.0,0.00012326]
[1731819326693,0.3608,90495.0,90490.0,0.00571647]
[1731819326898,0.3608,90495.0,90489.0,0.00012326]
[1731819327799,0.46796,90495.0,90489.0,0.00012326]
[1731819329701,0.15028311,90490.0,90489.0,0.00012326]
[1731819332308,0.20552311,90490.0,90489.0,0.00012326]
[1731819334611,0.53704311,90490.0,90489.0,0.00012326]
[1731819334811,0.055246,90481.0,90480.0,0.0051]
[1731819334999,0.055247,90479.0,90473.0,0.0051]
[1731819335310,0.055247,90479.0,90465.0,0.3608]
[1731819335311,0.15028311,90474.0,90465.0,0.3608]
[1731819335808,0.15028311,90474.0,90467.0,4.857e-05]
[1731819336393,0.15028311,90474.0,90469.0,0.055253]
[1731819337711,0.15028311,90474.0,90467.0,4.857e-05]
[1731819337712,0.15028311,90474.0,90472.0,0.055251]
[1731819338029,0.3608,90481.0,90475.0,0.055249]
[1731819338508,0.3608,90481.0,90467.0,4.857e-05]
[1731819338509,0.3608,90506.0,90480.0,0.51108311]
[1731819338710,0.3608,90506.0,90497.0,0.055236]
[1731819338917,0.15028311,90515.0,90493.0,0.3608]
[1731819338918,0.13160372,90513.0,90493.0,0.3608]
[1731819339113,0.15028311,90515.0,90500.0,0.055234]
[1731819339114,0.11408,90514.0,90500.0,0.055234]
[1731819339295,0.15028311,90507.0,90493.0,0.3608]
[1731819339499,0.15028311,90507.0,90494.0,0.06098379]
[1731819339713,0.15028311,90507.0,90494.0,0.055238]
[1731819339714,0.00013995,90504.0,90494.0,0.055238]
[1731819339900,0.00013995,90504.0,90495.0,0.00590925]
[1731819340106,0.00013995,90504.0,90497.0,0.055236]
[1731819340307,0.00013995,90504.0,90498.0,0.00590925]
[1731819340507,0.00013995,90504.0,90499.0,0.00590925]
[1731819340723,0.00013995,90504.0,90497.0,0.055236]
[1731819340909,0.00013995,90504.0,90498.0,0.00590904]
[1731819341103,0.00013995,90504.0,90489.0,0.055241]
[1731819341104,0.15028311,90499.0,90489.0,0.055241]
[1731819341416,0.15028311,90499.0,90490.0,0.02034117]
[1731819341615,0.15028311,90499.0,90489.0,0.055241]
[1731819341616,0.15028311,90499.0,90491.0,0.00595534]
[1731819341814,0.15028311,90499.0,90492.0,0.00595534]
[1731819341999,0.15028311,90499.0,90493.0,0.00595534]
[1731819342207,0.07335853,90504.0,90494.0,0.00595534]
[1731819342419,0.07335853,90504.0,90495.0,0.00595534]
[1731819342705,0.07335853,90504.0,90496.0,0.00595534]
[1731819342904,0.07335853,90504.0,90492.0,0.055239]
[1731819343117,0.07335853,90504.0,90493.0,0.00592849]
[1731819343423,0.15028311,90498.0,90494.0,0.00592849]
[1731819343604,0.15028311,90498.0,90495.0,0.00592849]
[1731819343805,0.15028311,90498.0,90488.0,0.055241]
[1731819344011,0.15028311,90498.0,90489.0,0.00593072]
[1731819344213,0.15028311,90498.0,90490.0,0.00593072]
[1731819344419,0.15028311,90498.0,90491.0,0.00593072]
[1731819344613,0.15028311,90498.0,90492.0,0.00593072]
[1731819344919,0.15028311,90498.0,90493.0,0.00594559]
[1731819345107,0.15028311,90498.0,90494.0,0.00594559]
[1731819345308,0.10525853,90504.0,90495.0,0.00594559]
[1731819345513,0.10525853,90504.0,90496.0,0.00594559]
[1731819345713,0.10525853,90504.0,90497.0,0.00594559]
[1731819345922,0.10525853,90504.0,90487.0,0.055242]
[1731819345923,0.15028311,90498.0,90487.0,0.055242]
[1731819346116,0.15028311,90498.0,90488.0,0.00592443]
[1731819346306,0.15028311,90498.0,90489.0,0.00592443]
[1731819346618,0.15028311,90498.0,90490.0,0.00592443]
[1731819346818,0.11408,90497.0,90491.0,0.00592443]
[1731819347005,0.11408,90497.0,90494.0,0.055238]
[1731819347209,0.11408,90497.0,90495.0,0.00592443]
[1731819347411,0.11408,90497.0,90496.0,0.00592443]
[1731819349808,0.11408,90497.0,90494.0,0.055238]
[1731819350021,0.11408,90497.0,90495.0,0.00594113]
[1731819350214,0.11408,90497.0,90496.0,0.00594113]
[1731819351421,0.24568372,90497.0,90496.0,0.00589468]
[1731819351604,0.11408,90497.0,90496.0,0.00589502]
[1731819351917,0.11408,90497.0,90494.0,0.055238]
[1731819351918,0.11408,90497.0,90494.0,0.05313302]
[1731819352120,0.11408,90497.0,90495.0,0.00587085]
[1731819352313,0.11408,90497.0,90494.0,0.05313302]
[1731819352520,0.11408,90497.0,90495.0,0.00939885]
[1731819352709,0.13160372,90499.0,90496.0,0.00939885]
[1731819352908,0.11408,90498.0,90497.0,0.00939885]
[1731819353315,0.24568372,90498.0,90497.0,0.00939885]
[1731819353818,0.39596683,90498.0,90497.0,0.00939885]
[1731819354021,0.39596683,90498.0,90486.0,0.3608]
[1731819354022,0.055236,90497.0,90486.0,0.3608]
[1731819354213,0.13228757,90494.0,90487.0,0.00947648]
[1731819354433,0.13228757,90493.0,90488.0,0.00947648]
[1731819354608,0.13228757,90493.0,90486.0,0.3608]
[1731819354811,0.13228757,90493.0,90487.0,0.00948039]
[1731819355013,0.13228757,90493.0,90486.0,0.3608]
[1731819355723,0.15028311,90489.0,90486.0,0.3608]
[1731819356128,0.13228757,90487.0,90486.0,0.3608]
[1731819356336,0.15028311,90489.0,90486.0,0.3608]
[1731819357829,0.055242,90488.0,90486.0,0.3608]
[1731819358222,0.055242,90488.0,90483.0,0.3608]
[1731819358423,0.13236671,90486.0,90483.0,0.3608]
[1731819358933,0.055243,90486.0,90483.0,0.3608]
[1731819359543,0.055244,90485.0,90483.0,0.3608]
[1731819359828,0.16450465,90484.0,90483.0,0.3608]
[1731819360126,0.05373858,90484.0,90474.0,0.0051]
[1731819360323,0.055247,90479.0,90472.0,0.3608]
[1731819360522,0.055247,90479.0,90469.0,0.0952]
[1731819360523,0.05525,90475.0,90469.0,0.0952]
[1731819360725,0.16781952,90479.0,90469.0,0.0332]
[1731819360726,0.13236505,90471.0,90469.0,0.0332]
[1731819361033,0.13236505,90470.0,90469.0,0.0332]
[1731819361233,0.1654599,90472.0,90467.0,4.857e-05]
[1731819361523,0.055253,90469.0,90467.0,4.857e-05]
[1731819361725,0.0537459,90468.0,90467.0,4.857e-05]
[1731819362929,0.055253,90469.0,90467.0,4.857e-05]
[1731819363124,0.16530127,90468.0,90467.0,4.857e-05]
[1731819363916,0.16530127,90468.0,90467.0,0.00570475]
[1731819364121,0.22055427,90469.0,90467.0,0.00570475]
[1731819364326,0.16530127,90470.0,90467.0,4.857e-05]
[1731819364530,0.02211607,90470.0,90469.0,0.3608]
[1731819364719,0.02211607,90470.0,90469.0,0.00566012]
[1731819365833,0.15429083,90470.0,90469.0,0.00566012]
[1731819366133,0.02211607,90470.0,90468.0,0.05291412]
[1731819366449,0.13216357,90469.0,90468.0,0.05291412]
[1731819366736,0.02211607,90470.0,90468.0,0.41371412]
[1731819367338,0.02211607,90470.0,90469.0,0.00944843]
[1731819367822,0.055247,90479.0,90476.0,0.055249]
[1731819367823,0.04367973,90479.0,90476.0,0.055249]
[1731819368026,0.13031607,90484.0,90478.0,0.055247]
[1731819368228,0.02211607,90484.0,90480.0,0.055246]
[1731819368422,0.02211607,90484.0,90481.0,0.00944843]
[1731819368618,0.02211607,90484.0,90482.0,0.06469343]
[1731819368821,0.02211607,90484.0,90483.0,0.00944843]
[1731819369735,0.13216357,90493.0,90489.0,0.055241]
[1731819369916,0.055236,90498.0,90493.0,0.055238]
[1731819369917,0.13216357,90498.0,90493.0,0.055238]
[1731819370123,0.17712039,90498.0,90494.0,0.00957411]
[1731819370324,0.04495682,90498.0,90495.0,0.00957411]
[1731819370521,0.02211607,90499.0,90495.0,0.00957411]
[1731819370728,0.02211607,90499.0,90493.0,0.055238]
[1731819370729,0.02211607,90499.0,90496.0,0.00957411]
[1731819370936,0.02211607,90499.0,90497.0,0.00957411]
[1731819371127,0.02211607,90499.0,90498.0,0.00957411]
[1731819372939,0.02211607,90499.0,90498.0,0.00977079]
[1731819373239,0.32681876,90504.0,90500.0,0.055234]
[1731819373424,0.00013995,90504.0,90502.0,0.3608]
[1731819373735,0.00013995,90504.0,90503.0,0.00977079]
[1731819376026,0.02225604,90504.0,90503.0,0.00977079]
[1731819376237,0.02225604,90504.0,90493.0,0.055238]
[1731819376539,0.02225604,90504.0,90494.0,0.02274046]
[1731819376729,0.15028311,90500.0,90495.0,0.0095918]
[1731819377040,0.15028311,90500.0,90493.0,0.055238]
[1731819377041,0.15028311,90500.0,90496.0,0.0095918]
[1731819377221,0.15028311,90500.0,90497.0,0.0095918]
[1731819377539,0.15028311,90500.0,90498.0,0.0095918]
[1731819377740,0.15028311,90500.0,90493.0,0.055238]
[1731819377741,0.15028311,90500.0,90499.0,0.00958592]
[1731819378127,0.15028311,90500.0,90499.0,0.00599017]
[1731819378335,0.15028311,90500.0,90499.0,0.00599043]
[1731819378627,0.51108311,90500.0,90487.0,0.0051]
[1731819378842,0.15028311,90492.0,90488.0,0.00599128]
[1731819379028,0.10816,90491.0,90489.0,0.00599128]
[1731819379231,0.10816,90491.0,90490.0,0.00599128]
[1731819380834,0.10816,90491.0,90490.0,0.06123128]
[1731819381044,0.25844311,90492.0,90490.0,0.05323128]
[1731819383523,0.30313234,90492.0,90490.0,0.05323128]
[1731819386846,0.30313234,90492.0,90478.0,0.0309]
[1731819386847,0.30313234,90492.0,90484.0,0.055244]
[1731819387046,0.15028311,90485.0,90484.0,0.055244]
[1731819387340,0.15028311,90485.0,90478.0,0.0309]
[1731819387546,0.15028311,90485.0,90481.0,0.055246]
[1731819387933,0.15028311,90485.0,90477.0,0.06446]
[1731819388132,0.15028311,90478.0,90476.0,0.055249]
[1731819388933,0.15028311,90478.0,90477.0,0.3608]
[1731819389139,0.15028311,90478.0,90476.0,0.055249]
[1731819389940,0.15028311,90478.0,90469.0,0.447553]
[1731819390146,0.15028311,90478.0,90469.0,0.3923]
[1731819390441,0.10816,90479.0,90471.0,0.055252]
[1731819390643,0.15028311,90472.0,90467.0,4.857e-05]
[1731819391146,0.0312,90471.0,90467.0,4.857e-05]
[1731819392445,0.055253,90469.0,90467.0,4.857e-05]
[1731819393650,0.3316,90468.0,90467.0,4.857e-05]
[1731819394948,0.46376357,90468.0,90467.0,4.857e-05]
[1731819395153,0.3316,90468.0,90467.0,4.857e-05]
[1731819396151,0.3316,90468.0,90454.0,0.055262]
[1731819396152,0.15028311,90460.0,90456.0,0.00509999]
[1731819396452,0.25644311,90460.0,90456.0,0.00509999]
[1731819397659,0.25644311,90460.0,90446.0,8.08e-05]
[1731819397660,0.15028311,90457.0,90446.0,8.08e-05]
[1731819397948,0.15028311,90457.0,90442.0,0.32302757]
[1731819397949,0.055269,90443.0,90442.0,0.32302757]
[1731819398150,0.31175211,90443.0,90442.0,0.27422266]
[1731819401046,0.20555211,90443.0,90442.0,0.27422266]
[1731819401244,0.35531822,90443.0,90442.0,0.27422266]
[1731819402452,0.35531822,90443.0,90427.0,0.4247]
[1731819402663,0.35531822,90443.0,90429.0,0.055278]
[1731819402664,0.15028311,90432.0,90429.0,0.055278]
[1731819404758,0.15028311,90432.0,90430.0,0.3608]
[1731819405453,0.055278,90428.0,90427.0,0.0633]
[1731819406944,0.055278,90428.0,90427.0,0.4241]
[1731819407153,0.055272,90439.0,90427.0,0.4241]
[1731819407451,0.1062,90438.0,90427.0,0.4241]
[1731819407648,0.40557459,90443.0,90442.0,0.05527]
[1731819407851,0.055273,90437.0,90431.0,0.055276]
[1731819408153,0.055278,90428.0,90427.0,0.42474]
[1731819408456,0.055278,90428.0,90427.0,0.4241]
[1731819408658,0.055278,90428.0,90427.0,0.06812346]
[1731819409353,0.055278,90428.0,90427.0,0.0633]
[1731819410356,0.055281,90424.0,90423.0,0.0324]
[1731819411155,0.055281,90424.0,90423.0,0.0244]
[1731819411551,0.055277,90430.0,90423.0,0.0244]
[1731819411757,0.055277,90430.0,90423.0,0.079681]
[1731819411962,0.15028311,90431.0,90421.0,6.113e-05]
[1731819412160,0.15028311,90422.0,90421.0,6.113e-05]
[1731819412662,0.15028311,90422.0,90421.0,0.0057378]
[1731819413347,0.40502748,90435.0,90421.0,0.00574627]
[1731819413348,0.04422748,90435.0,90421.0,0.00574627]
[1731819413565,0.0051,90436.0,90433.0,0.3608]
[1731819413566,0.055274,90436.0,90433.0,0.3608]
[1731819413745,0.055274,90436.0,90434.0,0.0645]
[1731819414257,0.09859978,90436.0,90434.0,0.0645]
[1731819414448,0.09859978,90436.0,90435.0,0.01582943]
[1731819415463,0.04332578,90436.0,90435.0,0.01582943]
[1731819415663,0.0221226,90436.0,90435.0,0.01582943]
[1731819417266,0.0221226,90436.0,90435.0,0.02802143]
[1731819418359,0.19492607,90441.0,90435.0,0.02802143]
[1731819418556,0.19492607,90441.0,90436.0,0.02802143]
[1731819418760,0.19492607,90441.0,90437.0,0.02802143]
[1731819418951,0.19492607,90441.0,90438.0,0.02802143]
[1731819419154,0.19492607,90441.0,90439.0,0.02802143]
[1731819419355,0.055271,90440.0,90434.0,0.0645]
[1731819419583,0.055271,90440.0,90435.0,0.0279994]
[1731819419764,0.055271,90440.0,90436.0,0.0279994]
[1731819420058,0.055271,90440.0,90437.0,0.0279994]
[1731819420363,0.19492607,90441.0,90438.0,0.01582425]
[1731819420364,0.055272,90439.0,90438.0,0.01582425]
[1731819421167,0.18743557,90439.0,90438.0,0.01582425]
[1731819421468,0.18744788,90439.0,90438.0,0.01582425]
[1731819422160,0.055272,90439.0,90438.0,0.01582425]
[1731819424352,0.055272,90439.0,90434.0,0.0324]
[1731819424353,0.055274,90436.0,90434.0,0.0324]
[1731819424552,0.13228964,90435.0,90434.0,0.0324]
[1731819424761,0.055274,90435.0,90434.0,0.01572572]
[1731819425353,0.055274,90435.0,90434.0,0.02130228]
[1731819425656,0.055274,90435.0,90434.0,0.01572572]
[1731819426054,0.055274,90435.0,90434.0,0.00772572]
[1731819426253,0.055274,90435.0,90434.0,0.01330228]
[1731819426455,0.055274,90435.0,90434.0,0.00772572]
[1731819427266,0.22057527,90435.0,90434.0,0.00772572]
[1731819427448,0.055274,90435.0,90434.0,0.00772572]
[1731819428666,0.22083566,90435.0,90434.0,0.00772572]
[1731819429160,0.055274,90435.0,90434.0,0.00772572]
[1731819430050,0.14154142,90435.0,90434.0,0.00772572]
[1731819430454,0.14154142,90435.0,90422.0,0.0328]
[1731819430455,0.05528,90425.0,90422.0,0.23097787]
[1731819430664,0.05528,90425.0,90422.0,0.0328]
[1731819430665,0.055281,90424.0,90422.0,0.0328]
[1731819430870,0.16554056,90423.0,90422.0,0.0328]
[1731819431066,0.16554056,90424.0,90418.0,0.19817787]
[1731819431271,0.055282,90423.0,90418.0,0.19817787]
[1731819431456,0.22082256,90423.0,90416.0,0.19817787]
[1731819432153,0.16554056,90422.0,90414.0,0.19817787]
[1731819432359,0.22082256,90423.0,90415.0,0.19817787]
[1731819432556,0.22082256,90423.0,90416.0,0.19817787]
[1731819432752,0.22082256,90423.0,90417.0,0.19817787]
[1731819432753,0.055282,90423.0,90417.0,0.19817787]
[1731819433764,0.09985247,90423.0,90417.0,0.19817787]
[1731819433970,0.26539303,90423.0,90415.0,0.19817787]
[1731819434171,0.16554056,90422.0,90415.0,0.19817787]
[1731819434352,0.26539303,90423.0,90415.0,0.19817787]
[1731819435163,0.09985247,90423.0,90415.0,0.19817787]
[1731819436177,0.04457047,90423.0,90416.0,0.19817787]
[1731819436354,0.15028311,90425.0,90417.0,0.055285]
[1731819436561,0.15028311,90425.0,90418.0,0.055284]
[1731819436562,0.19474748,90425.0,90418.0,0.055284]
[1731819436766,0.19474748,90425.0,90423.0,0.3608]
[1731819437470,0.32715878,90425.0,90421.0,0.198239]
[1731819437655,0.1324113,90424.0,90421.0,6.113e-05]
[1731819437859,0.1324113,90424.0,90422.0,0.3608]
[1731819438371,0.32715878,90425.0,90423.0,0.3608]
[1731819439169,0.38243878,90425.0,90423.0,0.3608]
[1731819439560,0.38243878,90425.0,90423.0,0.19817787]
[1731819439756,0.25002748,90425.0,90422.0,0.19817787]
[1731819439969,0.15458731,90424.0,90423.0,0.19817787]
[1731819440272,0.19474748,90425.0,90421.0,6.113e-05]
[1731819440273,0.04446437,90425.0,90424.0,0.055281]
[1731819440478,0.1324612,90427.0,90424.0,0.055281]
[1731819440683,0.1324961,90426.0,90425.0,0.19877729]
[1731819440892,0.15028311,90426.0,90423.0,0.19878651]
[1731819441061,0.055281,90423.0,90422.0,0.19078651]
[1731819441263,0.055281,90423.0,90421.0,6.113e-05]
[1731819441472,0.13249455,90422.0,90421.0,6.113e-05]
[1731819441664,0.055281,90423.0,90421.0,6.113e-05]
[1731819442079,0.18777587,90423.0,90421.0,6.113e-05]
[1731819442264,0.055281,90423.0,90421.0,6.113e-05]
[1731819442469,0.18777587,90423.0,90421.0,6.113e-05]
[1731819443058,0.13249487,90423.0,90421.0,6.113e-05]
[1731819443266,0.13249487,90425.0,90421.0,0.05534313]
[1731819443658,0.13249487,90425.0,90423.0,0.055281]
[1731819443867,0.02212475,90426.0,90425.0,0.05528]
[1731819444365,0.02212475,90426.0,90425.0,0.31806627]
[1731819445275,0.02212475,90426.0,90425.0,0.05528]
[1731819445675,0.02212475,90426.0,90425.0,0.32032205]
[1731819447573,0.07740475,90426.0,90424.0,0.26504205]
[1731819447774,0.055281,90424.0,90423.0,0.26504205]
[1731819448171,0.055281,90424.0,90421.0,6.113e-05]
[1731819448677,0.055281,90424.0,90422.0,0.055281]
[1731819449173,0.055281,90424.0,90422.0,0.32036619]
[1731819449580,0.055281,90424.0,90423.0,0.26508519]
[1731819450270,0.055281,90424.0,90422.0,0.055281]
[1731819450465,0.02212475,90426.0,90423.0,0.26508244]
[1731819450780,0.02212475,90426.0,90425.0,0.3608]
[1731819450968,0.02212475,90426.0,90421.0,6.113e-05]
[1731819450969,0.055282,90422.0,90421.0,6.113e-05]
[1731819451568,0.22082256,90422.0,90421.0,6.113e-05]
[1731819452172,0.055282,90422.0,90421.0,6.113e-05]
[1731819452977,0.22082256,90422.0,90421.0,6.113e-05]
[1731819453185,0.1090574,90422.0,90421.0,6.113e-05]
[1731819455381,0.055282,90422.0,90421.0,6.113e-05]
[1731819456086,0.055286,90415.0,90410.0,0.36079999]
[1731819456283,0.15028311,90413.0,90409.0,0.0312]
[1731819456588,0.15028311,90413.0,90410.0,0.3608]
[1731819458283,0.15028311,90413.0,90409.0,0.0312]
[1731819458581,0.15028311,90413.0,90411.0,0.055288]
[1731819459287,0.13251805,90423.0,90410.0,0.3608]
[1731819459492,0.13251805,90424.0,90422.0,0.055282]
[1731819459689,0.13250546,90424.0,90423.0,0.117981]
[1731819459985,0.07740475,90426.0,90423.0,0.117981]
[1731819460180,0.05528,90426.0,90424.0,0.055281]
[1731819461583,0.04400456,90431.0,90429.0,0.055277]
[1731819461885,0.055277,90431.0,90429.0,0.055277]
[1731819462086,0.055277,90431.0,90430.0,0.0301]
[1731819462790,0.19540182,90433.0,90430.0,0.085377]
[1731819462986,0.20555911,90433.0,90432.0,0.055276]
[1731819463377,0.055276,90431.0,90430.0,0.0301]
[1731819464080,0.18778146,90431.0,90430.0,0.0301]
[1731819465177,0.055276,90431.0,90430.0,0.085377]
[1731819465378,0.33806357,90433.0,90432.0,0.055276]
[1731819465686,0.22768206,90433.0,90432.0,0.055276]
[1731819466088,0.13250546,90434.0,90432.0,0.055276]
[1731819466391,0.04507448,90441.0,90434.0,0.055275]
[1731819466593,0.04507448,90441.0,90440.0,0.055271]
[1731819466978,0.04507448,90441.0,90440.0,0.119371]
[1731819467291,0.055269,90444.0,90443.0,0.055269]
[1731819470979,0.055269,90444.0,90443.0,0.047269]
[1731819472797,0.05527,90441.0,90440.0,0.0325]
[1731819472979,0.05527,90441.0,90440.0,0.087771]
[1731819476291,0.055272,90438.0,90434.0,0.055275]
[1731819476591,0.055274,90436.0,90433.0,0.055275]
[1731819476796,0.20555311,90442.0,90440.0,0.055271]
[1731819477697,0.15028311,90442.0,90434.0,0.055274]
[1731819477895,0.055274,90436.0,90434.0,0.055274]
[1731819478197,0.15028311,90442.0,90429.0,0.0332]
[1731819478496,0.0306,90441.0,90430.0,0.085377]
[1731819478692,0.055275,90433.0,90430.0,0.085377]
[1731819479094,0.055276,90432.0,90430.0,0.085377]
[1731819480505,0.05528,90426.0,90424.0,0.055281]
[1731819482499,0.04516754,90428.0,90423.0,0.055281]
[1731819482699,0.055281,90425.0,90423.0,0.055281]
[1731819483088,0.15028311,90434.0,90418.0,0.26485585]
[1731819483293,0.055282,90423.0,90417.0,0.43765294]
[1731819483489,0.055282,90423.0,90421.0,0.055282]
[1731819483898,0.055284,90419.0,90417.0,0.65795585]
[1731819484097,0.055284,90419.0,90417.0,0.3931]
[1731819487312,0.055284,90419.0,90417.0,0.0323]
[1731819487610,0.055287,90413.0,90410.0,0.055289]
[1731819487901,0.05529,90409.0,90407.0,0.36136]
[1731819488201,0.15028311,90417.0,90400.0,0.1323]
[1731819488202,0.15028311,90408.0,90400.0,0.1323]
[1731819488508,0.055293,90404.0,90400.0,0.1323]
[1731819489606,0.15028311,90408.0,90400.0,0.1323]
[1731819489794,0.15028311,90408.0,90401.0,0.055294]
[1731819490895,0.055292,90406.0,90401.0,0.055294]
[1731819492407,0.055287,90414.0,90408.0,0.05529]
[1731819493301,0.09883639,90414.0,90408.0,0.05529]
[1731819497096,0.16144842,90419.0,90413.0,0.3608]
[1731819497097,0.02212842,90419.0,90413.0,0.3608]
[1731819497498,0.02212842,90419.0,90412.0,0.055288]
[1731819498901,0.055285,90418.0,90412.0,0.055288]
[1731819500616,0.055285,90417.0,90412.0,0.055288]
[1731819501815,0.055286,90416.0,90412.0,0.055288]
[1731819502517,0.02212842,90419.0,90417.0,0.055285]
[1731819502813,0.09893895,90418.0,90417.0,0.055285]
[1731819503016,0.09893895,90423.0,90422.0,0.055282]
[1731819503217,0.09893895,90423.0,90422.0,0.416082]
[1731819504123,0.09893895,90423.0,90422.0,0.055282]
[1731819504927,0.055282,90423.0,90418.0,0.055284]
[1731819505099,0.055282,90423.0,90416.0,0.3608]
[1731819505303,0.055282,90423.0,90421.0,0.055282]
[1731819506412,0.15076366,90425.0,90421.0,0.055282]
[1731819507110,0.15076366,90425.0,90422.0,0.055282]
[1731819507301,0.15076366,90425.0,90415.0,0.26485585]
[1731819507505,0.15076366,90425.0,90413.0,0.055287]
[1731819507506,0.055284,90419.0,90413.0,0.055287]
[1731819507715,0.15076366,90425.0,90413.0,0.055287]
[1731819507913,0.15076366,90417.0,90409.0,0.26485585]
[1731819508215,0.055289,90411.0,90408.0,0.26485585]
[1731819508416,0.15076366,90409.0,90406.0,0.055292]
[1731819509213,0.055291,90407.0,90400.0,0.39645585]
[1731819509418,0.15076366,90401.0,90400.0,0.1316]
[1731819509622,0.15076366,90401.0,90388.0,0.3925]
[1731819509623,0.055297,90397.0,90383.0,0.0051]
[1731819509808,0.00012413,90400.0,90374.0,0.0332]
[1731819509809,0.055305,90384.0,90374.0,0.0332]
[1731819510006,0.13245949,90388.0,90375.0,0.055311]
[1731819510412,0.51228366,90389.0,90375.0,0.055311]
[1731819510413,0.13245949,90387.0,90375.0,0.055311]
[1731819510606,0.64402315,90389.0,90375.0,0.055311]
[1731819510812,0.64474315,90389.0,90375.0,0.055311]
[1731819511009,0.055306,90383.0,90375.0,0.055311]
[1731819511418,0.055306,90383.0,90376.0,0.05531]
[1731819512421,0.51156366,90389.0,90374.0,0.0332]
[1731819512719,0.55502048,90389.0,90382.0,0.055306]
[1731819512928,0.55502048,90389.0,90383.0,0.055306]
[1731819513222,0.055303,90388.0,90383.0,0.055306]
[1731819513455,0.55502048,90389.0,90383.0,0.055306]
[1731819513456,0.055303,90387.0,90383.0,0.055306]
[1731819514115,0.055304,90386.0,90383.0,0.055306]
[1731819515126,0.19422048,90389.0,90375.0,0.05531]
[1731819515527,0.055306,90383.0,90375.0,0.05531]
[1731819515820,0.055307,90382.0,90375.0,0.05531]
[1731819516021,0.19422048,90389.0,90375.0,0.05531]
[1731819516619,0.0324,90388.0,90375.0,0.05531]
[1731819517326,0.3608,90386.0,90370.0,0.36136]
[1731819517622,0.15076366,90378.0,90370.0,0.3608]
[1731819518020,0.10076366,90378.0,90370.0,0.3608]
[1731819518222,0.15076366,90371.0,90370.0,0.3608]
[1731819520920,0.19553868,90371.0,90370.0,0.3608]
[1731819521424,0.20607266,90379.0,90373.0,0.055312]
[1731819521610,0.055309,90379.0,90373.0,0.055312]
[1731819521815,0.05531,90377.0,90373.0,0.055312]
[1731819522032,0.055311,90376.0,90369.0,6.268e-05]
[1731819523024,0.055311,90375.0,90369.0,0.36086268]
[1731819523228,0.055311,90375.0,90371.0,0.055313]
[1731819523422,0.055311,90375.0,90369.0,0.36086268]
[1731819523623,0.02213763,90380.0,90369.0,0.36086268]
[1731819523826,0.055308,90380.0,90378.0,0.3608]
[1731819524032,0.09956959,90386.0,90382.0,0.055306]
[1731819524215,0.09956959,90386.0,90378.0,0.3608]
[1731819524216,0.09880959,90386.0,90383.0,0.055305]
[1731819524924,0.055304,90386.0,90384.0,0.055305]
[1731819527531,0.04460252,90388.0,90380.0,0.120508]
[1731819527727,0.3608,90394.0,90380.0,0.120508]
[1731819527919,0.3608,90394.0,90380.0,0.0652]
[1731819528116,0.3608,90394.0,90381.0,0.055307]
[1731819528117,0.055306,90383.0,90381.0,0.055307]
[1731819531122,0.07743731,90389.0,90384.0,0.055305]
[1731819531322,0.0553,90393.0,90387.0,0.416103]
[1731819531528,0.0553,90393.0,90391.0,0.055301]
[1731819531935,0.0553,90393.0,90386.0,0.3608]
[1731819531936,0.055298,90396.0,90392.0,0.0553]
[1731819532145,0.07743316,90395.0,90392.0,0.0553]
[1731819532436,0.09898152,90398.0,90395.0,0.055298]
[1731819533533,0.055297,90398.0,90396.0,0.055298]
[1731819533735,0.00012413,90400.0,90399.0,0.055296]
[1731819535130,0.055297,90397.0,90396.0,0.3608]
[1731819535342,0.20606066,90397.0,90396.0,0.3608]
[1731819536842,0.055297,90397.0,90396.0,0.3608]
[1731819539654,0.18775649,90397.0,90396.0,0.3608]
[1731819540150,0.055297,90397.0,90396.0,0.3608]
[1731819540843,0.13245949,90398.0,90396.0,0.416098]
[1731819541034,0.00012413,90400.0,90398.0,0.055297]
[1731819541035,0.13245949,90399.0,90398.0,0.055297]
[1731819541650,0.13258362,90400.0,90398.0,0.055297]
[1731819541941,0.00012413,90400.0,90398.0,0.055297]